{"text_format":"1","workbook":"xlsx","n_sheets":6,"sheets":["Sivu 1","Sivu 2","Sivu 3","Sivu 4","Sivu 5","Ohjeet"],"not_rendered":{"charts":0,"images":1,"macros":1,"external_links":0,"defined_names":5,"comments":0,"pivot_tables":0},"unopened":[],"bounds":{"document_bytes":16777216,"sheet_cells":100000,"rows_first":2000,"rows_last":500,"rows_between":2000,"halvings":0,"cell_chars":16384,"cell_head_chars":4096},"cells_cut":0,"cells_raw":0,"read":"whole","date_system":"1900"}

{"sheet":"Sivu 1","index":0,"n_rows":60,"n_cols":9,"rows_kept":60,"cut":false,"hidden":false,"merged":[[2,0,2,8],[0,0,0,8],[3,0,3,8],[54,2,54,8],[55,2,55,8],[11,6,11,7],[12,6,12,7],[13,6,13,7],[14,6,14,7],[15,6,15,7],[16,6,16,7],[36,1,36,2],[17,6,17,7],[18,6,18,7],[19,6,19,7],[20,6,20,7],[32,6,32,7],[23,6,23,7],[24,6,24,7],[25,6,25,7],[26,6,26,7],[27,6,27,7],[28,6,28,7],[29,6,29,7],[30,6,30,7],[31,6,31,7],[34,6,34,7],[35,6,35,7],[36,6,36,7],[59,2,59,8],[38,6,38,7],[39,6,39,7],[40,6,40,7],[41,6,41,7],[51,2,51,8],[57,0,57,8],[58,2,58,8],[38,1,38,2],[39,1,39,2],[40,1,40,2],[41,1,41,2],[37,6,37,7],[21,1,21,2],[22,6,22,7],[33,1,33,2],[34,1,34,2],[11,1,11,2],[12,1,12,2],[13,1,13,2],[14,1,14,2],[15,1,15,2],[16,1,16,2],[17,1,17,2],[18,1,18,2],[19,1,19,2],[20,1,20,2],[21,6,21,7],[33,6,33,7],[6,2,6,6],[7,2,7,6],[56,0,56,7],[22,1,22,2],[23,1,23,2],[24,1,24,2],[25,1,25,2],[26,1,26,2],[27,1,27,2],[28,1,28,2],[29,1,29,2],[30,1,30,2],[31,1,31,2],[32,1,32,2],[37,1,37,2],[35,1,35,2]]}
["MENETELMÄKOHTAISEN TYÖKOKEMUKSEN TODENTAMINEN (sivu 1)"]
[]
["Käytä yhtä excel tiedostoa vain yhden menetelmän kokemuksen raportointiin"]
["(Työkokemukseksi ei hyväksytä kouluttajien kurssitunteja)"]
[]
[]
["Hakijan nimi:"]
["Todennettava menetelmä:"]
[]
[]
[]
["pvm.","Kuvaus harjoittelusta",null,"tunnit",null,"pvm.","Kuvaus harjoittelusta",null,"tunnit"]
[]
[]
[]
[]
[]
[]
[]
[]
[]
[]
[]
[]
[]
[]
[]
[]
[]
[]
[]
[]
[]
[]
[]
[]
[]
[]
[]
[]
[]
[]
[]
["TYÖKOKEMUS TUNNIT YHTEENSÄ:",null,{"$f":"SUM(D13:D42,I13:I42)","v":0}]
[]
["TYÖKOKEMUS PÄIVISSÄ YHTEENSÄ:",null,{"$f":"C44/7","v":0}]
[]
[]
[]
["Vahvistamme, että yllämainitun henkilön taulukossa ilmoittama työkokemus  haettavassa NDT-menetelmässä pitää paikkansa"]
[]
["Paikka ja päivämäärä"]
[]
["Hakija (työntekijä):"]
["Allekirjoitus"]
["Nimen selvennys"]
[]
["Työnantajan edustaja / referee:"]
["Allekirjoitus"]
["Nimen selvennys"]

{"sheet":"Sivu 2","index":1,"n_rows":60,"n_cols":9,"rows_kept":60,"cut":false,"hidden":false,"merged":[[0,0,0,8],[3,0,3,8],[6,2,6,6],[7,2,7,6],[11,1,11,2],[11,6,11,7],[2,0,2,8],[12,1,12,2],[12,6,12,7],[13,1,13,2],[13,6,13,7],[14,1,14,2],[14,6,14,7],[15,1,15,2],[15,6,15,7],[16,1,16,2],[16,6,16,7],[17,1,17,2],[17,6,17,7],[18,1,18,2],[18,6,18,7],[19,1,19,2],[19,6,19,7],[20,1,20,2],[20,6,20,7],[21,1,21,2],[21,6,21,7],[22,1,22,2],[22,6,22,7],[23,1,23,2],[23,6,23,7],[24,1,24,2],[24,6,24,7],[25,1,25,2],[25,6,25,7],[26,1,26,2],[26,6,26,7],[27,1,27,2],[27,6,27,7],[28,1,28,2],[28,6,28,7],[29,1,29,2],[29,6,29,7],[30,1,30,2],[30,6,30,7],[31,1,31,2],[31,6,31,7],[32,1,32,2],[32,6,32,7],[33,1,33,2],[33,6,33,7],[34,1,34,2],[34,6,34,7],[35,1,35,2],[35,6,35,7],[36,1,36,2],[36,6,36,7],[37,1,37,2],[37,6,37,7],[38,1,38,2],[38,6,38,7],[39,1,39,2],[39,6,39,7],[40,1,40,2],[40,6,40,7],[41,1,41,2],[41,6,41,7],[58,2,58,8],[59,2,59,8],[51,2,51,8],[54,2,54,8],[55,2,55,8],[56,0,56,7],[57,0,57,8]]}
["MENETELMÄKOHTAISEN TYÖKOKEMUKSEN TODENTAMINEN (sivu 2)"]
[]
["Käytä yhtä excel tiedostoa vain yhden menetelmän kokemuksen raportointiin"]
["(Työkokemukseksi ei hyväksytä kouluttajien kurssitunteja)"]
[]
[]
["Hakijan nimi:",null,{"$f":"'Sivu 1'!C7:G7","v":0}]
["Todennettava menetelmä:",null,{"$f":"'Sivu 1'!C8:G8","v":0}]
[]
[]
[]
["pvm.","Kuvaus harjoittelusta",null,"tunnit",null,"pvm.","Kuvaus harjoittelusta",null,"tunnit"]
[]
[]
[]
[]
[]
[]
[]
[]
[]
[]
[]
[]
[]
[]
[]
[]
[]
[]
[]
[]
[]
[]
[]
[]
[]
[]
[]
[]
[]
[]
[]
["TYÖKOKEMUS TUNNIT YHTEENSÄ:",null,{"$f":"SUM(D13:D42,I13:I42)","v":0}]
[]
["TYÖKOKEMUS PÄIVISSÄ YHTEENSÄ:",null,{"$f":"C44/7","v":0}]
[]
["Sivut 1 ja 2 yhteensä päiviä",null,{"$f":"C46+'Sivu 1'!C46","v":0}]
[]
["Vahvistamme, että yllämainitun henkilön taulukossa ilmoittama työkokemus  haettavassa NDT-menetelmässä pitää paikkansa"]
[]
["Paikka ja päivämäärä",null,{"$f":"'Sivu 1'!C52:I52","v":0}]
[]
["Hakija (työntekijä):"]
["Allekirjoitus"]
["Nimen selvennys",null,{"$f":"'Sivu 1'!C56:I56","v":0}]
[]
["Työnantajan edustaja / referee:"]
["Allekirjoitus"]
["Nimen selvennys",null,{"$f":"'Sivu 1'!C60:I60","v":0}]

{"sheet":"Sivu 3","index":2,"n_rows":60,"n_cols":9,"rows_kept":60,"cut":false,"hidden":false,"merged":[[0,0,0,8],[3,0,3,8],[6,2,6,6],[7,2,7,6],[11,1,11,2],[11,6,11,7],[2,0,2,8],[12,1,12,2],[12,6,12,7],[13,1,13,2],[13,6,13,7],[14,1,14,2],[14,6,14,7],[15,1,15,2],[15,6,15,7],[16,1,16,2],[16,6,16,7],[17,1,17,2],[17,6,17,7],[18,1,18,2],[18,6,18,7],[19,1,19,2],[19,6,19,7],[20,1,20,2],[20,6,20,7],[21,1,21,2],[21,6,21,7],[22,1,22,2],[22,6,22,7],[23,1,23,2],[23,6,23,7],[24,1,24,2],[24,6,24,7],[25,1,25,2],[25,6,25,7],[26,1,26,2],[26,6,26,7],[27,1,27,2],[27,6,27,7],[28,1,28,2],[28,6,28,7],[29,1,29,2],[29,6,29,7],[30,1,30,2],[30,6,30,7],[31,1,31,2],[31,6,31,7],[32,1,32,2],[32,6,32,7],[33,1,33,2],[33,6,33,7],[34,1,34,2],[34,6,34,7],[35,1,35,2],[35,6,35,7],[36,1,36,2],[36,6,36,7],[37,1,37,2],[37,6,37,7],[38,1,38,2],[38,6,38,7],[39,1,39,2],[39,6,39,7],[40,1,40,2],[40,6,40,7],[41,1,41,2],[41,6,41,7],[58,2,58,8],[59,2,59,8],[51,2,51,8],[54,2,54,8],[55,2,55,8],[56,0,56,7],[57,0,57,8]]}
["MENETELMÄKOHTAISEN TYÖKOKEMUKSEN TODENTAMINEN (sivu 3)"]
[]
["Käytä yhtä excel tiedostoa vain yhden menetelmän kokemuksen raportointiin"]
["(Työkokemukseksi ei hyväksytä kouluttajien kurssitunteja)"]
[]
[]
["Hakijan nimi:",null,{"$f":"'Sivu 1'!C7:G7","v":0}]
["Todennettava menetelmä:",null,{"$f":"'Sivu 1'!C8:G8","v":0}]
[]
[]
[]
["pvm.","Kuvaus harjoittelusta",null,"tunnit",null,"pvm.","Kuvaus harjoittelusta",null,"tunnit"]
[]
[]
[]
[]
[]
[]
[]
[]
[]
[]
[]
[]
[]
[]
[]
[]
[]
[]
[]
[]
[]
[]
[]
[]
[]
[]
[]
[]
[]
[]
[]
["TYÖKOKEMUS TUNNIT YHTEENSÄ:",null,{"$f":"SUM(D13:D42,I13:I42)","v":0}]
[]
["TYÖKOKEMUS PÄIVISSÄ YHTEENSÄ:",null,{"$f":"C44/7","v":0}]
[]
["Sivut 1, 2 ja 3 yhteensä päiviä",null,{"$f":"C46+'Sivu 1'!C46+'Sivu 2'!C46","v":0}]
[]
["Vahvistamme, että yllämainitun henkilön taulukossa ilmoittama työkokemus  haettavassa NDT-menetelmässä pitää paikkansa"]
[]
["Paikka ja päivämäärä",null,{"$f":"'Sivu 1'!C52:I52","v":0}]
[]
["Hakija (työntekijä):"]
["Allekirjoitus"]
["Nimen selvennys",null,{"$f":"'Sivu 1'!C56:I56","v":0}]
[]
["Työnantajan edustaja / referee:"]
["Allekirjoitus"]
["Nimen selvennys",null,{"$f":"'Sivu 1'!C60:I60","v":0}]

{"sheet":"Sivu 4","index":3,"n_rows":60,"n_cols":9,"rows_kept":60,"cut":false,"hidden":false,"merged":[[0,0,0,8],[3,0,3,8],[6,2,6,6],[7,2,7,6],[11,1,11,2],[11,6,11,7],[2,0,2,8],[12,1,12,2],[12,6,12,7],[13,1,13,2],[13,6,13,7],[14,1,14,2],[14,6,14,7],[15,1,15,2],[15,6,15,7],[16,1,16,2],[16,6,16,7],[17,1,17,2],[17,6,17,7],[18,1,18,2],[18,6,18,7],[19,1,19,2],[19,6,19,7],[20,1,20,2],[20,6,20,7],[21,1,21,2],[21,6,21,7],[22,1,22,2],[22,6,22,7],[23,1,23,2],[23,6,23,7],[24,1,24,2],[24,6,24,7],[25,1,25,2],[25,6,25,7],[26,1,26,2],[26,6,26,7],[27,1,27,2],[27,6,27,7],[28,1,28,2],[28,6,28,7],[29,1,29,2],[29,6,29,7],[30,1,30,2],[30,6,30,7],[31,1,31,2],[31,6,31,7],[32,1,32,2],[32,6,32,7],[33,1,33,2],[33,6,33,7],[34,1,34,2],[34,6,34,7],[35,1,35,2],[35,6,35,7],[36,1,36,2],[36,6,36,7],[37,1,37,2],[37,6,37,7],[38,1,38,2],[38,6,38,7],[39,1,39,2],[39,6,39,7],[40,1,40,2],[40,6,40,7],[41,1,41,2],[41,6,41,7],[59,2,59,8],[51,2,51,8],[54,2,54,8],[55,2,55,8],[56,0,56,7],[57,0,57,8],[58,2,58,8]]}
["MENETELMÄKOHTAISEN TYÖKOKEMUKSEN TODENTAMINEN (sivu 4)"]
[]
["Käytä yhtä excel tiedostoa vain yhden menetelmän kokemuksen raportointiin"]
["(Työkokemukseksi ei hyväksytä kouluttajien kurssitunteja)"]
[]
[]
["Hakijan nimi:",null,{"$f":"'Sivu 1'!C7:G7","v":0}]
["Todennettava menetelmä:",null,{"$f":"'Sivu 1'!C8:G8","v":0}]
[]
[]
[]
["pvm.","Kuvaus harjoittelusta",null,"tunnit",null,"pvm.","Kuvaus harjoittelusta",null,"tunnit"]
[]
[]
[]
[]
[]
[]
[]
[]
[]
[]
[]
[]
[]
[]
[]
[]
[]
[]
[]
[]
[]
[]
[]
[]
[]
[]
[]
[]
[]
[]
[]
["TYÖKOKEMUS TUNNIT YHTEENSÄ:",null,{"$f":"SUM(D13:D42,I13:I42)","v":0}]
[]
["TYÖKOKEMUS PÄIVISSÄ YHTEENSÄ:",null,{"$f":"C44/7","v":0}]
[]
["Sivut 1, 2, 3 ja 4 yhteensä päiviä",null,{"$f":"C46+'Sivu 1'!C46+'Sivu 2'!C46+'Sivu 3'!C46","v":0}]
[]
["Vahvistamme, että yllämainitun henkilön taulukossa ilmoittama työkokemus  haettavassa NDT-menetelmässä pitää paikkansa"]
[]
["Paikka ja päivämäärä",null,{"$f":"'Sivu 1'!C52:I52","v":0}]
[]
["Hakija (työntekijä):"]
["Allekirjoitus"]
["Nimen selvennys",null,{"$f":"'Sivu 1'!C56:I56","v":0}]
[]
["Työnantajan edustaja / referee:"]
["Allekirjoitus"]
["Nimen selvennys",null,{"$f":"'Sivu 1'!C60:I60","v":0}]

{"sheet":"Sivu 5","index":4,"n_rows":60,"n_cols":9,"rows_kept":60,"cut":false,"hidden":false,"merged":[[0,0,0,8],[3,0,3,8],[6,2,6,6],[7,2,7,6],[11,1,11,2],[11,6,11,7],[2,0,2,8],[12,1,12,2],[12,6,12,7],[13,1,13,2],[13,6,13,7],[14,1,14,2],[14,6,14,7],[15,1,15,2],[15,6,15,7],[16,1,16,2],[16,6,16,7],[17,1,17,2],[17,6,17,7],[18,1,18,2],[18,6,18,7],[19,1,19,2],[19,6,19,7],[20,1,20,2],[20,6,20,7],[21,1,21,2],[21,6,21,7],[22,1,22,2],[22,6,22,7],[23,1,23,2],[23,6,23,7],[24,1,24,2],[24,6,24,7],[25,1,25,2],[25,6,25,7],[26,1,26,2],[26,6,26,7],[27,1,27,2],[27,6,27,7],[28,1,28,2],[28,6,28,7],[29,1,29,2],[29,6,29,7],[30,1,30,2],[30,6,30,7],[31,1,31,2],[31,6,31,7],[32,1,32,2],[32,6,32,7],[33,1,33,2],[33,6,33,7],[34,1,34,2],[34,6,34,7],[35,1,35,2],[35,6,35,7],[36,1,36,2],[36,6,36,7],[37,1,37,2],[37,6,37,7],[38,1,38,2],[38,6,38,7],[39,1,39,2],[39,6,39,7],[40,1,40,2],[40,6,40,7],[41,1,41,2],[41,6,41,7],[59,2,59,8],[51,2,51,8],[54,2,54,8],[55,2,55,8],[56,0,56,7],[57,0,57,8],[58,2,58,8]]}
["MENETELMÄKOHTAISEN TYÖKOKEMUKSEN TODENTAMINEN (sivu 5)"]
[]
["Käytä yhtä excel tiedostoa vain yhden menetelmän kokemuksen raportointiin"]
["(Työkokemukseksi ei hyväksytä kouluttajien kurssitunteja)"]
[]
[]
["Hakijan nimi:",null,{"$f":"'Sivu 1'!C7:G7","v":0}]
["Todennettava menetelmä:",null,{"$f":"'Sivu 1'!C8:G8","v":0}]
[]
[]
[]
["pvm.","Kuvaus harjoittelusta",null,"tunnit",null,"pvm.","Kuvaus harjoittelusta",null,"tunnit"]
[]
[]
[]
[]
[]
[]
[]
[]
[]
[]
[]
[]
[]
[]
[]
[]
[]
[]
[]
[]
[]
[]
[]
[]
[]
[]
[]
[]
[]
[]
[]
["TYÖKOKEMUS TUNNIT YHTEENSÄ:",null,{"$f":"SUM(D13:D42,I13:I42)","v":0}]
[]
["TYÖKOKEMUS PÄIVISSÄ YHTEENSÄ:",null,{"$f":"C44/7","v":0}]
[]
["Sivut 1, 2, 3, 4 ja 5 yhteensä päiviä",null,{"$f":"C46+'Sivu 1'!C46+'Sivu 2'!C46+'Sivu 3'!C46+'Sivu 4'!C46","v":0}]
[]
["Vahvistamme, että yllämainitun henkilön taulukossa ilmoittama työkokemus  haettavassa NDT-menetelmässä pitää paikkansa"]
[]
["Paikka ja päivämäärä",null,{"$f":"'Sivu 1'!C52:I52","v":0}]
[]
["Hakija (työntekijä):"]
["Allekirjoitus"]
["Nimen selvennys",null,{"$f":"'Sivu 1'!C56:I56","v":0}]
[]
["Työnantajan edustaja / referee:"]
["Allekirjoitus"]
["Nimen selvennys",null,{"$f":"'Sivu 1'!C60:I60","v":0}]

{"sheet":"Ohjeet","index":5,"n_rows":45,"n_cols":1,"rows_kept":45,"cut":false,"hidden":false,"merged":[]}
["OHJEITA NDT-TUTKINTOJEN TYÖKOKEMUKSEN RAPORTOINTIIN PERUSTUTKINNOISSA"]
[]
["1.    Työkokemus perustutkintoihin tarkoittaa hakijan omakätistä käytännön harjoittelua haettavan menetelmän mukaisissa tarkastustehtävissä. Työkokemukseksi ei hyväksytä kouluttajien kurssitunteja."]
["2.    Menetelmäkohtaiseen työkokemukseen hyväksytään vain työkokemus haettavassa menetelmässä, muiden menetelmien työkokemusta ei hyväksytä. Tämän vuoksi kuvaus harjoittelusta rivillä tulee näkyä myös menetelmä."]
["3.    Työkokemuksen tulee olla haettavien sektoreiden mukaista ja tulisi sisältää harjoittelua eri sektoreilta. Esimerkiksi VT2 S kokemukseksi ei hyväksytä maalauksen pintakäsittelyn tarkastuksia. RT 1 ja 2 tutkinnoissa on käytössä pelkkä W hitsit sektori ja kokemuksen tulee olla hitsien kuvausta ja luokittelua. Korroosiokuvaus ja valujen kuvaus ei kuulu W (hitsit) sektoriin."]
["4.    Työkokemuksen tuntimäärän tulee olla se aika mitä varsinaiseen käytännön harjoitteluun on mennyt. Matka-aika ja odotteluajat eivät ole työkokemusta."]
["5.    Työkokemuksen tulee olla haettavan menetelmän käytännön työn mukaista harjoittelua, esimerkiksi tarkastustehtävät, laitteiden säätäminen tarkastuskuntoon."]
["6.    Tätä menetelmäkohtaista työkokemusta/harjoittelua voi suorittaa oikeissa tarkastustehtävissä ja myös harjoitella konttorilla/kotona ja harjoittelua voi suorittaa toisen henkilön valvonnassa ja myös itseopiskeluna harjoituskappaleilla."]
["7.    Lopullisen arvioinnin työkokemuksen soveltuvuudesta ja kaikesta aineistosta tekee tutkinnon jälkeen tutkinnon arvioija ja hyväksytystä tutkinnosta sertifiointi päätöksen tekijä joka lopullisesti hyväksyy sertifioinnin kaiken aineiston perusteella. Arvioija ja sertifiointi päätöksen tekijä ovat aina eri henkilöitä. Hakemuksen vastaanottaja ei tee lopullista hyväksyntää aineistosta."]
["8.    Minkäänlaista teoria opiskelua ei hyväksytä työkokemukseksi. Myöskään ohjeiden lukemista tai ohjeiden tekemistä ei hyväksytä työkokemukseksi."]
[]
["KUINKA TYÖKOKEMUS RAPORTOIDAAN OIKEIN"]
[]
["1.    Sertiointielimellä on mallilomake jota suosittelemme käytettäväksi työkokemuksen raportoinnissa. Yritys voi myös käyttää omia kaavakkeita joista näkyy harjoittelun tuntimäärä ja päivät (tuntimäärä/7h päivä). Samat raportoinnin vaatimukset koskevat myös yrityksen omia kaavakkeita."]
["2.    Raportoinnissa tulee olla päivämäärä jolloin on harjoiteltu, kuvaus harjoittelusta ja tuntimäärä."]
["3.    Yhden päivän suurin sallittu tuntimäärä on 12 tuntia. Kokemus päivinä saadaan jakamalla kertyneet tunnit seitsemällä (SFS-EN ISO 9712:2022). "]
["4.    Samaan aikaan voi harjoitella vain yhtä menetelmää. Esimerkiksi MT tai PT harjoitteluaikaa ei voi samanaikaisesti käyttää VT2 harjoitteluajaksi."]
["5.    Lomakkeeseen raportoidaan päiväkohtaisesti mitä työkokemus/harjoittelu on ollut ja kuinka monta tuntia tätä on tehty, tästä voi poiketa ainoastaan sertifiointielimen luvalla."]
["6.    Kuvaus harjoittelusta kohtaan vaadimme että selityksestä käy ilmi mitä on tarkastettu/harjoiteltu ja millä menetelmällä. Pelkkä MT tarkastukset esimerkkinä ei riitä selitykseksi koska siitä ei selviä mitä on tehty, hitsien MT tarkastukset tekstinä jo kertoo mitä on harjoiteltu. Tähän kohtaan ei ole pakko raportoida sitä että onko harjoittelu tehty toisen henkilön valvonnassa."]
["7.    Lyhyt selostus harjoittelun kohteesta ja menetelmästä riittää harjoittelun kuvaukseksi."]
["8.    ÄLKÄÄ LAITTAKO ASIAKASTIETOJA KUVAUS HARJOITTELUSTA KOHTAAN, TÄTÄ TIETOA EMME VAADI JA SE EI OLE OLENNAINEN TIETO RAPORTOINNISSA."]
[]
["Esimerkkejä hyväksyttävästä harjoittelun kuvauksesta raportoinnista:"]
["·         Hitsien MT tarkastus "]
["·         Valujen VT tarkastus"]
["·         Perusaineen PT tarkastus"]
["·         Takeen UT tarkastus"]
["·         Lämmönvaihtimen tuubien ET tarkastus"]
["·         Nostimen määräaikaistarkastuksen MT tarkastukset"]
["·         Hitsien UT harjoittelu"]
["·         Ultraäänilaitteen säätämisen harjoittelu"]
["·         Pyörrevirtalaitteen säätämisen harjoittelu"]
["·         Kattilan seisokin tulistimien UT paksuusmittaus"]
[]
["Esimerkkejä huonosta raportoinnista:"]
["·         PT (ei selviä mitä on tehty)"]
["·         Magneettijauhetarkastukset (ei selviä mitä on tehty)"]
["·         Kenttätarkastuksia (ei selviä mitä on tehty ja millä menetelmällä)"]
["·         Esivalmistetarkastuksia (ei selviä mitä on tehty ja millä menetelmällä)"]
["·         Vastaanottotarkastus (ei selviä mitä on tehty ja millä menetelmällä)"]
["·         Helen UT (ei selviä mitä on tehty ja ylimääräinen asiakastieto)"]
["·         MT tarkastukset (ei selviä mitä on tehty)"]
["·         Nostimen määräaikaistarkastus (ei selviä mitä on tehty ja millä menetelmällä)"]
["·         Ohjeet (ei ole käytännön työtä)"]
["·         Kirjuri (kirjurin tehtävää ei hyväksytä työkokemukseksi)"]